fUST/lending_fUST_20250829
["ID","MTS","AMOUNT","RATE_DAILY","PERIOD"]
[381961153,1756452646870,-653.20544536,0.00031816,2]
[381961154,1756452646879,-500.0,0.00031826,7]
[381961155,1756452646889,-171.79,0.00031835,15]
[381961156,1756452646899,-171.79,0.00031935,15]
[381961157,1756452646907,-171.79,0.00032035,15]
[381961158,1756452646917,-500.0,0.00032053,7]
[381961160,1756452646927,-171.79,0.00032135,15]
[381961163,1756452646938,-171.79,0.00032235,15]
[381961164,1756452646947,-500.0,0.00032285,7]
[381961166,1756452646956,-1460.0,0.00032323,2]
[381961168,1756452646966,-171.79,0.00032335,15]
[381961170,1756452646975,-172.091833,0.00032375,5]
[381961173,1756452646986,-171.79,0.00032435,15]
[381961174,1756452646996,-171.79,0.00032535,15]
[381961176,1756452647006,-171.79,0.00032635,15]
[381961178,1756452647015,-172.091833,0.00032686,2]
[381961181,1756452647027,-2336.94653314,0.00032694,2]
[381961183,1756452647037,-171.79,0.00032735,15]
[381961185,1756452647047,-171.79,0.00032835,15]
[381961187,1756452647056,-1560.0,0.00032871,2]
[381961189,1756452647066,-501.40831291,0.00032877,5]
[381961191,1756452647075,-171.79,0.00032935,60]
[381961193,1756452647085,-171.79,0.00033035,60]
[381961195,1756452647095,-171.79,0.00033135,60]
[381961196,1756452647104,-328.74132676,0.000332,117]
[381961198,1756452647113,-328.74132674,0.000332,117]
[381961200,1756452647122,-328.74132674,0.000332,117]
[381961202,1756452647132,-171.79,0.00033235,60]
[381961204,1756452647142,-171.79,0.00033335,60]
[381961206,1756452647151,-1660.0,0.00033419,2]
[381961208,1756452647161,-500.0,0.00033424,7]
[381961210,1756452647170,-171.79,0.00033435,60]
[381961212,1756452647180,-171.79,0.00033535,60]
[381961214,1756452647194,-171.79,0.00033635,60]
[381961216,1756452647204,-1766.024557,0.0003365,2]
[381961218,1756452647213,-199.0,0.00033698,7]
[381961220,1756452647223,-171.79,0.00033735,60]
[381961222,1756452647234,-300.0,0.00033773,5]
[381961224,1756452647244,-171.79,0.00033835,60]
[381961226,1756452647254,-974.0,0.00033908,2]
[381961228,1756452647263,-409.0,0.00033908,2]
[381961230,1756452647273,-632.0,0.00033908,2]
[381961231,1756452647282,-2151.0,0.00033908,2]
[381961233,1756452647291,-501.67275332,0.0003391,12]
[381961235,1756452647300,-171.79,0.00033935,60]
[381961237,1756452647310,-540.0,0.00033967,2]
[381961239,1756452647320,-156.0,0.00034,120]
[381961241,1756452647329,-171.79,0.00034035,60]
[381961243,1756452647339,-171.79,0.00034135,60]
[381961245,1756452647348,-500.0,0.0003418,7]
[381961247,1756452647357,-171.79,0.00034235,60]
[381961249,1756452647366,-500.0,0.00034243,7]
[381961251,1756452647376,-230.62328423,0.00034321,5]
[381961253,1756452647385,-171.79,0.00034335,60]
[381961255,1756452647394,-335.0,0.00034371,2]
[381961257,1756452647403,-199.0,0.00034383,8]
[381961259,1756452647413,-171.79,0.00034435,60]
[381961261,1756452647423,-201.474739,0.00034521,120]
[381961263,1756452647432,-171.79,0.00034535,60]
[381961265,1756452647441,-171.79,0.00034635,60]
[381961267,1756452647450,-199.0,0.000347,120]
[381961269,1756452647459,-199.0,0.000347,120]
[381961271,1756452647469,-171.79,0.00034735,60]
[381961273,1756452647478,-171.79,0.00034835,60]
[381961275,1756452647488,-500.0,0.00034864,7]
[381961276,1756452647498,-171.79,0.00034935,60]
[381961277,1756452647599,-4000.0,0.0003494,4]
[381961278,1756452647613,-171.79,0.00035035,60]
[381961279,1756452647623,-199.0,0.00035068,9]
[381961280,1756452647633,-3891.98,0.000351,14]
[381961281,1756452647643,-171.79,0.00035135,60]
[381961282,1756452647652,-171.79,0.00035235,60]
[381961283,1756452647661,-500.0,0.0003528,7]
[381961284,1756452647671,-171.79,0.00035335,60]
[381961285,1756452647681,-171.79,0.00035435,60]
[381961286,1756452647691,-9683.78,0.00035491,7]
[381961287,1756452647700,-220286.117929,0.00035501,3]
[381961288,1756452647710,-653.20544536,0.00035501,3]
[381961289,1756452647719,-500.0,0.00035511,7]
[381961290,1756452647729,-171.79,0.00035535,60]
[381961291,1756452647738,-1292.547175,0.00035606,2]
[381961292,1756452647748,-171.79,0.00035635,60]
[381961293,1756452647758,-4000.0,0.00035663,4]
[381961294,1756452647767,-171.79,0.00035735,60]
[381961295,1756452647777,-199.0,0.00035753,10]
[381961296,1756452647787,-1095.87,0.000358,7]
[381961297,1756452647796,-171.79,0.00035835,60]
[381961298,1756452647806,-172.091833,0.000359,60]
[381961299,1756452647815,-171.79,0.00035935,60]
[381961300,1756452647832,-328.74132674,0.00035999,120]
[381961301,1756452647845,-232.6790651,0.00036,3]
[381961302,1756452647855,-845.57753514,0.00036,3]
[381961303,1756452647864,-160.0,0.00036,3]
[381961304,1756452647877,-160.0,0.00036,3]
[381961305,1756452647888,-171.79,0.00036035,60]
[381961306,1756452647899,-500.0,0.00036114,7]
[381961307,1756452647911,-171.79,0.00036135,60]
[381961308,1756452647920,-500.0,0.00036161,7]
[381961309,1756452647931,-171.79,0.00036235,60]
[381961310,1756452647941,-500.0,0.00036328,7]
[381961311,1756452647951,-171.79,0.00036335,60]
[381961312,1756452647960,-4000.0,0.00036385,4]
[381961313,1756452647970,-171.79,0.00036435,60]
[381961314,1756452647980,-199.0,0.00036438,11]
[381961315,1756452647991,-171.79,0.00036535,60]
[381961316,1756452648000,-3891.98,0.000366,14]
[381961317,1756452648010,-500.0,0.00036615,7]
[381961318,1756452648020,-171.79,0.00036635,60]
[381961319,1756452648029,-500.0,0.0003671,7]
[381961320,1756452648039,-171.79,0.00036735,60]
[381961321,1756452648048,-172.091833,0.0003675,5]
[381961322,1756452648057,-171.79,0.00036835,60]
[381961323,1756452648067,-156.0,0.000369,120]
[381961324,1756452648076,-974.0,0.00036908,2]
[381961325,1756452648085,-409.0,0.00036908,2]
[381961326,1756452648096,-632.0,0.00036908,2]
[381961327,1756452648105,-2151.0,0.00036908,2]
[381961328,1756452648115,-171.79,0.00036935,60]
[381961329,1756452648124,-220286.117929,0.0003698,3]
[381961330,1756452648133,-1306.41089072,0.0003698,3]
[381961331,1756452648143,-151.0,0.0003698,30]
[381961332,1756452648153,-151.0,0.0003698,30]
[381961333,1756452648162,-151.0,0.0003698,30]
[381961334,1756452648171,-151.0,0.0003698,30]
[381961335,1756452648183,-151.0,0.0003698,30]
[381961336,1756452648193,-228.444963,0.0003698,30]
[381961337,1756452648204,-172.47,0.00037035,60]
[381961338,1756452648213,-4000.0,0.00037108,4]
[381961339,1756452648223,-199.0,0.00037123,12]
[381961340,1756452648234,-172.091833,0.00037178,60]
[381961341,1756452648244,-1095.87,0.000372,7]
[381961342,1756452648255,-500.0,0.00037222,7]
[381961343,1756452648264,-1513.203848,0.000373,25]
[381961344,1756452648274,-500.0,0.0003733,7]
[381961345,1756452648283,-500.0,0.00037334,7]
[381961346,1756452648293,-900.0,0.00037435,7]
[381961347,1756452648303,-500.0,0.00037537,7]
[381961348,1756452648312,-160.0,0.0003756,2]
[381961349,1756452648321,-216.21406313,0.0003756,2]
[381961350,1756452648331,-232.6790651,0.0003756,2]
[381961351,1756452648340,-160.0,0.0003756,2]
[381961352,1756452648350,-11358.84933845,0.00037667,2]
[381961353,1756452648359,-1082.939295,0.0003768,11]
[381961354,1756452648369,-1000.0,0.000377,11]
[381961355,1756452648378,-1000.0,0.0003772,11]
[381961356,1756452648388,-653.20544536,0.0003773,3]
[381961357,1756452648398,-1000.0,0.0003774,11]
[381961358,1756452648407,-1000.0,0.0003776,11]
[381961359,1756452648417,-624.92485175,0.0003777,3]
[381961360,1756452648427,-653.20544536,0.0003777,3]
[381961361,1756452648436,-1000.0,0.0003778,11]
[381961362,1756452648447,-1146.350046,0.0003778,11]
[381961363,1756452648457,-4572.43811752,0.0003778,3]
[381961364,1756452648467,-189.97902906,0.0003779,2]
[381961365,1756452648477,-151.0,0.0003779,30]
[381961366,1756452648488,-151.0,0.0003779,30]
[381961367,1756452648498,-151.0,0.0003779,30]
[381961368,1756452648507,-151.0,0.0003779,30]
[381961369,1756452648517,-151.0,0.0003779,30]
[381961370,1756452648527,-151.0,0.0003779,30]
[381961371,1756452648537,-151.0,0.0003779,30]
[381961372,1756452648547,-370000.0,0.0003779,2]
[381961373,1756452648556,-1000.0,0.000378,12]
[381961374,1756452648566,-1000.0,0.000378,12]
[381961375,1756452648577,-1500.0,0.000378,25]
[381961376,1756452648587,-199.0,0.00037808,13]
[381961377,1756452648596,-4000.0,0.00037831,4]
[381961378,1756452648606,-653.20544536,0.0003788,3]
[381961379,1756452648615,-2000.0,0.00037889,3]
[381961380,1756452648625,-151.0,0.00037889,3]
[381961381,1756452648635,-151.0,0.00037889,3]
[381961382,1756452648644,-151.0,0.00037889,3]
[381961383,1756452648654,-151.0,0.00037889,3]
[381961384,1756452648664,-151.0,0.00037889,3]
[381961385,1756452648673,-151.0,0.00037889,3]
[381961386,1756452648684,-151.0,0.00037889,3]
[381961387,1756452648693,-151.0,0.00037889,3]
[381961388,1756452648703,-151.0,0.00037889,3]
[381961389,1756452648713,-151.0,0.00037889,3]
[381961390,1756452648723,-151.0,0.00037889,3]
[381961391,1756452648732,-151.0,0.00037889,3]
[381961392,1756452648741,-151.0,0.00037889,3]
[381961393,1756452648751,-160.0,0.0003789,3]
[381961394,1756452648760,-160.0,0.0003789,7]
[381961395,1756452648770,-800.0,0.00037919,7]
[381961396,1756452648779,-2612.82178144,0.0003799,3]
[381961397,1756452648788,-149779.68403773,0.00038,120]
[381961398,1756452648797,-1000.0,0.00038,120]
[381961399,1756452648807,-221.27042095,0.00038,30]
[381961400,1756452648816,-8105.63700587,0.00038,120]
[381961401,1756452648826,-1000.0,0.00038,120]
[381961402,1756452648836,-160.0,0.00038,3]
[381961403,1756452648845,-160.0,0.00038,120]
[381961404,1756452648855,-500.0,0.00038,30]
[381961405,1756452648864,-417.15472785,0.00038,120]
[381961406,1756452648873,-217.30324474,0.00038,3]
[381961407,1756452648883,-217.30324474,0.00038,120]
[381961408,1756452648892,-160.0,0.00038,120]
[381961409,1756452648901,-216.21406313,0.00038,3]
[381961410,1756452648911,-216.21406313,0.00038,120]
[381961411,1756452648921,-160.0,0.00038,3]
[381961412,1756452648930,-1178.55479607,0.00038,2]
[381961413,1756452648941,-232.6790651,0.00038,120]
[381961414,1756452648950,-845.57753514,0.00038,120]
[381961415,1756452648960,-1780.16,0.00038356,120]
[381961416,1756452648970,-500.0,0.000384,30]
[381961417,1756452648980,-172.091833,0.00038456,60]
[381961418,1756452648990,-2336.94653314,0.00038489,2]
[381961419,1756452648999,-209.98852698,0.00038493,14]
[381961420,1756452649009,-201.0,0.000385,49]
[381961421,1756452649018,-4000.0,0.00038554,8]
[381961422,1756452649027,-500.0,0.000386,30]
[381961423,1756452649037,-1095.88,0.000386,7]
[381961424,1756452649046,-251.9580792,0.0003868,15]
[381961425,1756452649056,-743.21001078,0.000387,120]
[381961426,1756452649066,-1780.16,0.00038904,120]
[381961427,1756452649075,-425.0872307,0.0003899,120]
[381961428,1756452649085,-500.0,0.00039,30]
[381961429,1756452649095,-168.24461977,0.00039014,30]
[381961430,1756452649105,-200.0,0.000392,120]
[381961431,1756452649115,-1042.43108,0.000392,120]
[381961432,1756452649125,-500.0,0.000392,30]
[381961433,1756452649135,-694.74595934,0.00039277,8]
[381961434,1756452649144,-446.34063144,0.00039315,5]
[381961435,1756452649153,-1780.16,0.00039452,120]
[381961436,1756452649163,-201.474739,0.00039452,120]
[381961437,1756452649172,-200.0,0.00039454,120]
[381961438,1756452649182,-200.0,0.00039454,120]
[381961439,1756452649193,-168.24461977,0.00039534,30]
[381961440,1756452649203,-500.0,0.000396,30]
[381961441,1756452649212,-172.091833,0.00039734,60]
[381961442,1756452649221,-153.139073,0.00039734,60]
[381961443,1756452649232,-522.2640819,0.000398,30]
[381961444,1756452649242,-156.0,0.000399,120]
[381961445,1756452649251,-1766.024557,0.000399,2]
[381961446,1756452649263,-974.0,0.00039908,2]
[381961447,1756452649272,-409.0,0.00039908,2]
[381961448,1756452649281,-632.0,0.00039908,2]
[381961449,1756452649292,-328.74132674,0.00039955,120]
[381961450,1756452649303,-653.20544536,0.0003999,3]
[381961451,1756452649312,-364.93892078,0.00039999,31]
[381961452,1756452649321,-404.74914167,0.00039999,31]
[381961453,1756452649330,-214.30569527,0.0004,120]
[381961454,1756452649341,-990.48094778,0.0004,120]
[381961455,1756452649351,-500.0,0.0004,2]
[381961456,1756452649361,-423.68335477,0.0004,120]
[381961457,1756452649370,-467.17,0.0004,2]
[381961458,1756452649379,-1000.0,0.0004,120]
[381961459,1756452649390,-20397.29184963,0.0004,30]
[381961460,1756452649399,-160.0,0.0004,30]
[381961461,1756452649409,-417.15472785,0.0004,30]
[381961462,1756452649418,-217.30324474,0.0004,30]
[381961463,1756452649429,-160.0,0.0004,30]
[381961464,1756452649439,-216.21406313,0.0004,30]
[381961465,1756452649448,-957057.23960441,0.0004,120]
[381961466,1756452649492,-2499.62548132,0.0004,120]
[381961467,1756452649507,-160.0,0.00038,120]
[381961468,1756452649516,-4159.002836,0.0004,120]
[381961469,1756452649528,-911.59828681,0.0004,120]
[381961475,1756453715643,1860.0,0.00029903,60]
[381961477,1756453796750,160.080606,0.00013699,2]
[381961514,1756453832975,-160.0,0.0002,7]
[381961517,1756453832986,-155.28201734,0.00023445,2]
[381961519,1756453832996,-696.0,0.00023545,2]
[381961521,1756453833007,-300.0,0.00023545,2]
[381961523,1756453833018,-9844.2765943,0.00023546,2]
[381961525,1756453833028,-177.01210144,0.000239,2]
[381961527,1756453833038,-160.080606,0.00023973,2]
[381961529,1756453833049,-166.030305,0.00024045,2]
[381961531,1756453833062,-1460.59158323,0.00024873,2]
[381961533,1756453833073,-160.0,0.0002496,2]
[381961535,1756453833083,-217.30324474,0.0002496,2]
[381961537,1756453833092,-160.0,0.0002496,2]
[381961539,1756453833102,-216.21406313,0.0002496,2]
[381961541,1756453833112,-232.6790651,0.0002496,2]
[381961543,1756453833122,-160.0,0.00024962,2]
[381961545,1756453833132,-425.57542551,0.00024962,2]
[381961547,1756453833143,-845.57753514,0.00024962,2]
[381961549,1756453833152,-12399.94522919,0.00024962,2]
[381961555,1756453833184,-160.0,0.0002496,2]
[381961557,1756453833194,-1320.000025,0.00024962,2]
[381961559,1756453833206,-8670.32509608,0.00024962,2]
[381961561,1756453833218,-6403.25698911,0.00024962,2]
[381961563,1756453833227,-500.0,0.00024973,2]
[381961565,1756453833236,-488.83,0.00024984,8]
[381961567,1756453833246,-391.63173589,0.00025778,2]
[381961569,1756453833258,-45.12935311,0.00025778,2]
[381961571,1756453833267,-300.65622452,0.00026044,2]
[381961573,1756453833277,-105.25878701,0.000265,2]
[381961576,1756453833289,-396.14286019,0.000265,2]
[381961578,1756453833299,-500.0,0.00027993,2]
[381961580,1756453833309,-456.25,0.00027993,2]
[381961582,1756453833319,-440.14830264,0.00027993,2]
[381961584,1756453833329,-500.0,0.00027993,2]
[381961586,1756453833339,-500.0,0.00027993,2]
[381961588,1756453833349,-500.0,0.00027993,2]
[381961590,1756453833359,-448.86426194,0.00027993,2]
[381961591,1756453833368,-500.0,0.00027993,2]
[381961593,1756453833378,-500.0,0.00027993,2]
[381961594,1756453833388,-500.0,0.00027993,2]
[381961595,1756453833398,-500.0,0.00027993,2]
[381961596,1756453833408,-500.0,0.00027993,2]
[381961597,1756453833419,-439.39656257,0.00027993,2]
[381961598,1756453833430,-2210.98196664,0.00027996,4]
[381961599,1756453833442,-836.30325091,0.00027996,4]
[381961600,1756453833469,-858.95344586,0.00027996,4]
[381961651,1756453839497,-186.87,0.000221,2]
[381961653,1756453839507,-213.79428328,0.000265,2]
[381961655,1756453839517,-186.87,0.00027944,7]
[381961657,1756453839526,-1703.56176263,0.00027996,4]
[381961659,1756453839538,-390.19957396,0.00027996,4]
[381961661,1756453839547,-422.13218258,0.00028,7]
[381961671,1756453839637,-423.44535256,0.00028,7]
[381961673,1756453839646,-845.57753514,0.00028,3]
[381961675,1756453839658,-845.57753514,0.00028,7]
[381961677,1756453839668,-448.87211881,0.00028083,2]
[381961680,1756453839681,-1011.7194644,0.00028083,2]
[381961682,1756453839691,-155.24248247,0.000282,5]
[381961816,1756453840858,-344.75751753,0.000282,5]
[381961818,1756453840868,-38.35448247,0.00028333,5]
[381961824,1756453840910,-461.64551753,0.00028333,5]
[381961826,1756453840921,-501.48726797,0.00028333,5]
[381961828,1756453840930,-974.0,0.00028873,2]
[381961830,1756453840939,-632.0,0.00028873,2]
[381961832,1756453840948,-2151.0,0.00028873,2]
[381961834,1756453840958,-150.0,0.00028873,2]
[381961836,1756453840967,-409.0,0.00028873,2]
[381961838,1756453840977,-977.4440685,0.00028998,4]
[381961840,1756453840988,-434.74771586,0.00028998,4]
[381961862,1756453841182,-1856.36821564,0.00028998,4]
[381961864,1756453841192,-845.57753514,0.00029,10]
[381961866,1756453841201,-301.6554837,0.00029008,120]
[381961868,1756453841211,-201.474739,0.00029589,120]
[381961870,1756453841220,-160.0,0.00029652,2]
[381961872,1756453841230,-160.0,0.00029652,2]
[381961874,1756453841239,-897.71,0.0002976,10]
[381961876,1756453841248,-4175.83269713,0.0002977,2]
[381961878,1756453841262,-46844.16351948,0.0002977,2]
[381961881,1756453841276,-7857.65400624,0.0002977,2]
[381961883,1756453841291,-15704.30022157,0.0002977,2]
[381962242,1756453844946,-808.34662663,0.0002977,2]
[381962253,1756453845023,-150.0,0.00028873,2]
[381962255,1756453845033,-3261.50181254,0.0002977,2]
[381962261,1756453845086,-298.35613702,0.0002977,2]
[381962429,1756453846830,-1851.16854789,0.0002977,2]
[381962438,1756453846903,-4820.88474912,0.0002977,2]
[381963595,1756454884195,160.080606,0.00013699,2]
[381963597,1756454957133,-5000.0,0.00023054,6]
[381963598,1756454957154,-156.52827372,0.000239,2]
[381963599,1756454957325,-1233.3069371,0.00024699,2]
[381963600,1756454957357,-666.0,0.00024904,2]
[381963601,1756454957384,-207.0582772,0.00024951,2]
[381963602,1756454957406,-300.0,0.00024998,2]
[381963603,1756454957428,-1200.0,0.00024999,2]
[381963604,1756454957450,-1200.0,0.00024999,2]
[381963605,1756454957470,-10686.53995316,0.00025,2]
[381963606,1756454957492,-206.137685,0.0002523,2]
[381963607,1756454957514,-500.0,0.000254,2]
[381963608,1756454957534,-349.108715,0.00025565,2]
[381963609,1756454957554,-1000.0,0.00025566,2]
[381963610,1756454957574,-300.0,0.00025777,2]
[381963611,1756454957594,-300.0,0.00025777,2]
[381963612,1756454957613,-300.0,0.00025777,2]
[381963613,1756454957633,-233.444739,0.00025778,2]
[381963614,1756454957652,-160.080606,0.00026027,2]
[381963615,1756454957672,-233.444739,0.00026044,2]
[381963616,1756454957691,-391.064,0.00026378,13]
[381963617,1756454957710,-10000.0,0.00026378,2]
[381963618,1756454957731,-1387.56200405,0.000269,2]
[381963619,1756454957751,-45396.56899322,0.0002699,2]
[381963620,1756454959109,-54603.43100678,0.0002699,2]
[381963621,1756454959130,-529.77114056,0.00027,7]
[381963622,1756454959151,-425.57542551,0.00027,7]
[381963623,1756454959171,-234.443468,0.00027153,2]
[381963624,1756454959193,-588.67485234,0.000279,2]
[381963625,1756454959214,-425.57542551,0.00027902,2]
[381963626,1756454959238,-500.0,0.00027907,2]
[381963627,1756454959261,-500.0,0.00027907,2]
[381963628,1756454959284,-500.0,0.00027907,2]
[381963629,1756454959307,-243.93965625,0.00027907,2]
[381963630,1756454959327,-160.0,0.00027908,2]
[381963631,1756454959347,-160.0,0.00027908,2]
[381963632,1756454959367,-160.0,0.00027908,2]
[381963633,1756454959388,-217.30324474,0.00027908,2]
[381963634,1756454959408,-160.0,0.00027908,2]
[381963635,1756454959429,-160.0,0.00027908,2]
[381963636,1756454959451,-232.6790651,0.00027908,2]
[381963637,1756454959473,-216.21406313,0.00027908,2]
[381963638,1756454959511,-500.0,0.00027973,5]
[381963639,1756454959534,-500.0,0.00027973,5]
[381963640,1756454959556,-173.35421571,0.00027979,2]
[381963641,1756454959576,-1295.83885528,0.0002798,2]
[381963642,1756454959597,-20833.67064347,0.0002798,2]
[381963643,1756454967151,-216.21406313,0.00025,10]
[381963644,1756454967173,-5000.0,0.000277,2]
[381963645,1756454967196,-845.57753514,0.00027902,2]
[381963646,1756454967217,-8315.43959043,0.0002798,2]
[381963647,1756454968135,-100423.838018,0.0002798,2]
[381963648,1756454969134,-23258.0533598,0.0002798,2]
[381963649,1756454970158,-13942.46328653,0.0002798,2]
[381963682,1756455031843,-5000.0,0.00024953,6]
[381963684,1756455031854,-647.91942764,0.0002798,2]
[381963686,1756455031863,-18449.39443526,0.0002798,2]
[381963691,1756455031906,-32890.71901067,0.0002798,2]
[381963855,1756455038245,-193.77107292,0.00027979,2]
[381963856,1756455038255,-3636.10672332,0.0002798,2]
[381963857,1756455038311,-104870.448735,0.0002798,2]
[381963858,1756455038323,-49898.89881152,0.0002798,2]
[381963859,1756455038333,-232.6790651,0.00028,7]
[381963860,1756455038342,-232.6790651,0.00028,7]
[381963861,1756455038353,-529.77114056,0.00028,10]
[381963862,1756455038363,-529.77114056,0.00028,10]
[381963863,1756455038374,-845.57753514,0.00028,7]
[381963864,1756455038383,-206.137685,0.00028655,2]
[381963865,1756455038393,-150.0,0.00028873,2]
[381963866,1756455038404,-974.0,0.00028873,2]
[381963867,1756455038414,-2151.0,0.00028873,2]
[381963868,1756455038424,-632.0,0.00028873,2]
[381963869,1756455038433,-151.0,0.0002889,7]
[381963870,1756455038444,-60545.23648497,0.0002889,2]
[381963871,1756455038456,-956.50693701,0.0002889,2]
[381963872,1756455038549,-4640.90000419,0.0002889,2]
[381963875,1756455038566,-2250.49049517,0.0002889,2]
[381963897,1756455039903,-366.90747897,0.0002889,2]
[381963898,1756455039961,-19405.14023652,0.0002889,2]
[381963899,1756455040019,-495.74616097,0.0002889,2]
[381963900,1756455040034,-13009.0110641,0.0002889,2]
[381963901,1756455040051,-38878.43859503,0.0002889,2]
[381963902,1756455040073,-39244.2973333,0.0002889,2]
[381963903,1756455040090,-2625.48643849,0.0002889,2]
[381963904,1756455040103,-18924.765453,0.0002889,2]
[381963905,1756455040117,-75955.30296214,0.0002889,2]
[381963906,1756455040131,-11201.19145181,0.0002889,2]
[381963979,1756455043206,-1233.257172,0.0002889,2]
[381964213,1756455045817,-16500.0,0.0002889,2]
[381964215,1756455045829,-5287.72993287,0.0002889,2]
[381964235,1756455046007,-64998.62441346,0.0002889,2]
[381964237,1756455046016,-145457.14314331,0.000289,2]
[381964239,1756455046026,-409.0,0.00028972,2]
[381964241,1756455046038,-845.57753514,0.00029,10]
[381964243,1756455046047,-11387.0006819,0.00029449,2]
[381964245,1756455046056,-385.0042062,0.00029449,2]
[381964247,1756455046065,-221.27042195,0.000295,10]
[381964249,1756455046074,-201.4747417,0.00029589,120]
[381964250,1756455046084,-466.46222369,0.000297,90]
[381964252,1756455046093,-1162.16483658,0.0002977,2]
[381964254,1756455046103,-328.76,0.000298,7]
[381964257,1756455046114,-1365.51,0.000298,7]
[381964259,1756455046123,-154.82,0.000298,7]
[381964261,1756455046134,-1387.56200405,0.0002982,2]
[381964263,1756455046143,-2049.0,0.00029862,60]
[381964265,1756455046153,-25103.7498536,0.00029863,30]
[381964267,1756455046163,-529.77114056,0.00029863,30]
[381964269,1756455046173,-845.57753514,0.00029863,30]
[381964271,1756455046182,-417.15472785,0.00029863,30]
[381964273,1756455046192,-160.0,0.00029863,30]
[381964275,1756455046202,-216.21406313,0.00029863,30]
[381964277,1756455046212,-151.0,0.00029863,7]
[381964279,1756455046222,-151.0,0.00029863,7]
[381964281,1756455046232,-151.0,0.00029863,7]
[381964283,1756455046241,-151.0,0.00029863,7]
[381964285,1756455046251,-151.0,0.00029863,7]
[381964287,1756455046261,-179.8514682,0.00029903,60]
[381964289,1756455046270,-200.0,0.00030463,120]
[381964291,1756455046279,-150.0,0.00030533,5]
[381964293,1756455046289,-151.0,0.00030558,7]
[381964295,1756455046299,-151.0,0.00030558,7]
[381964297,1756455046308,-151.0,0.00030558,7]
[381964299,1756455046317,-262.39299,0.00030558,7]
[381964301,1756455046327,-155.0,0.00031,120]
[381964303,1756455046336,-250.0,0.00031081,5]
[381964305,1756455046345,-200.0,0.00031398,120]
[381964307,1756455046355,-350.0,0.00031629,5]
[381964309,1756455046364,-150.0,0.00031873,2]
[381964311,1756455046374,-150.0,0.00031873,2]
[381964313,1756455046383,-150.0,0.00031873,2]
[381964315,1756455046393,-974.0,0.00031873,2]
[381964316,1756455046403,-2151.0,0.00031873,2]
[381964318,1756455046412,-632.0,0.00031873,2]
[381964320,1756455046421,-409.0,0.00031972,2]
[381964322,1756455046431,-206.137685,0.0003208,2]
[381964324,1756455046441,-450.0,0.00032177,5]
[381964326,1756455046450,-4000.0,0.00032274,4]
[381964328,1756455046459,-160.0,0.0003245,2]
[381964330,1756455046469,-550.0,0.00032725,5]
[381964332,1756455046478,-1387.56200405,0.0003274,2]
[381964334,1756455046487,-260.0,0.00032998,2]
[381964336,1756455046497,-2540.7832857,0.00033196,2]
[381964340,1756455046715,-164.37066337,0.000332,117]
[381964341,1756455046726,-650.0,0.00033273,5]
[381964342,1756455046736,-360.0,0.00033546,2]
[381964343,1756455046745,-209.98852698,0.00033698,7]
[381964344,1756455046756,-750.0,0.00033821,5]
[381964345,1756455046765,-588.67485233,0.000339,2]
[381964346,1756455046776,-566.9253814,0.00034032,2]
[381964347,1756455046786,-564.16328593,0.00034094,2]
[381964348,1756455046795,-155.0,0.000342,120]
[381964349,1756455046805,-150.113824,0.00034342,10]
[381964350,1756455046815,-850.0,0.00034369,5]
[381964352,1756455046824,-974.0,0.00034873,2]